[Event "*** SCC Grand Prix: Titled Tuesday Blitz"]
[Site "Chess.com"]
[Date "2020.07.14"]
[Round "3"]
[White "WinstonSilvakov"]
[Black "Haapana"]
[Result "0-1"]
[WhiteElo "2115"]
[BlackElo "2349"]
[TimeControl "180+1"]
[EndTime "10:27:18 PDT"]
[Termination "Haapana won by resignation"]

1. d4 {[%clk 0:03:00.9]} 1... Nf6 {[%clk 0:02:56.1]} 2. e3 {[%clk 0:03:00.8]}
2... g6 {[%clk 0:02:55.9]} 3. Bd3 {[%clk 0:02:59.4]} 3... Bg7 {[%clk 0:02:56.4]}
4. h4 {[%clk 0:03:00.1]} 4... h5 {[%clk 0:02:53.8]} 5. c4 {[%clk 0:02:57.1]}
5... d6 {[%clk 0:02:53.1]} 6. Nc3 {[%clk 0:02:57.6]} 6... Nc6 {[%clk 0:02:52.4]}
7. d5 {[%clk 0:02:54.9]} 7... Ne5 {[%clk 0:02:51.2]} 8. Be2 {[%clk 0:02:54.6]}
8... c6 {[%clk 0:02:49.5]} 9. Nf3 {[%clk 0:02:51.1]} 9... Nxf3+ {[%clk
0:01:56.9]} 10. Bxf3 {[%clk 0:02:49.1]} 10... cxd5 {[%clk 0:01:55.5]} 11. Nxd5
{[%clk 0:02:44]} 11... Ng4 {[%clk 0:01:47]} 12. Qc2 {[%clk 0:02:26.2]} 12... O-O
{[%clk 0:01:44.6]} 13. Be4 {[%clk 0:02:20.2]} 13... e6 {[%clk 0:01:28.6]} 14.
Nf4 {[%clk 0:02:14.2]} 14... Nf6 {[%clk 0:01:28.1]} 15. Bd3 {[%clk 0:02:00.9]}
15... d5 {[%clk 0:01:18.2]} 16. Bd2 {[%clk 0:01:53.9]} 16... dxc4 {[%clk
0:01:00.5]} 17. Bxc4 {[%clk 0:01:50.3]} 17... Bd7 {[%clk 0:00:58.5]} 18. Bb4
{[%clk 0:01:35.5]} 18... Re8 {[%clk 0:00:57.1]} 19. Rd1 {[%clk 0:01:35.2]} 19...
Qc7 {[%clk 0:00:54.3]} 20. Bd6 {[%clk 0:01:34.4]} 20... Qc6 {[%clk 0:00:53]} 21.
Bb3 {[%clk 0:01:11.4]} 21... Rac8 {[%clk 0:00:51.8]} 22. Qxc6 {[%clk 0:01:09.3]}
22... Bxc6 {[%clk 0:00:52.4]} 23. O-O {[%clk 0:01:07.1]} 23... a5 {[%clk
0:00:47.8]} 24. a3 {[%clk 0:01:04.3]} 24... Ne4 {[%clk 0:00:46.2]} 25. Nd3
{[%clk 0:00:38.6]} 25... Nxd6 {[%clk 0:00:43.4]} 0-1

[Event "*** SCC Grand Prix: Titled Tuesday Blitz"]
[Site "Chess.com"]
[Date "2020.07.14"]
[Round "3"]
[White "Korchmar_Vasiliy"]
[Black "amintabatabaei"]
[Result "0-1"]
[WhiteElo "2687"]
[BlackElo "3016"]
[TimeControl "180+1"]
[EndTime "10:27:22 PDT"]
[Termination "amintabatabaei won on time"]

1. d4 {[%clk 0:03:00.9]} 1... Nf6 {[%clk 0:02:59.8]} 2. c4 {[%clk 0:03:01.2]}
2... g6 {[%clk 0:02:59.9]} 3. Nc3 {[%clk 0:03:01]} 3... d5 {[%clk 0:03:00.1]} 4.
Nf3 {[%clk 0:03:01.3]} 4... Bg7 {[%clk 0:03:00.2]} 5. Bf4 {[%clk 0:03:01.5]}
5... O-O {[%clk 0:02:59.6]} 6. e3 {[%clk 0:03:02.1]} 6... c5 {[%clk 0:03:00]} 7.
dxc5 {[%clk 0:03:03]} 7... Nbd7 {[%clk 0:02:55.6]} 8. cxd5 {[%clk 0:02:56.4]}
8... Qa5 {[%clk 0:02:55.2]} 9. Be2 {[%clk 0:02:50.9]} 9... Nxd5 {[%clk
0:02:50.3]} 10. O-O {[%clk 0:01:52.1]} 10... Nxc3 {[%clk 0:02:47.9]} 11. bxc3
{[%clk 0:01:51.2]} 11... Nxc5 {[%clk 0:02:48.5]} 12. Nd4 {[%clk 0:01:38.5]}
12... e5 {[%clk 0:02:45]} 13. Nb3 {[%clk 0:01:38.1]} 13... Nxb3 {[%clk
0:02:43.2]} 14. axb3 {[%clk 0:01:39]} 14... Qxc3 {[%clk 0:02:43.7]} 15. Bg5
{[%clk 0:01:36.2]} 15... Be6 {[%clk 0:02:42.2]} 16. Bc4 {[%clk 0:00:50]} 16...
Bxc4 {[%clk 0:02:38.6]} 17. bxc4 {[%clk 0:00:50.9]} 17... Qxc4 {[%clk
0:02:38.5]} 18. Rc1 {[%clk 0:00:39.8]} 18... Qe6 {[%clk 0:02:37.8]} 19. Rc7
{[%clk 0:00:38.7]} 19... a5 {[%clk 0:02:29.4]} 20. Rxb7 {[%clk 0:00:35.7]} 20...
a4 {[%clk 0:02:30]} 21. Be7 {[%clk 0:00:33.6]} 21... Rfe8 {[%clk 0:02:25.5]} 22.
Ba3 {[%clk 0:00:33.4]} 22... Bf8 {[%clk 0:02:25.3]} 23. Qa1 {[%clk 0:00:25.7]}
23... Qc6 {[%clk 0:02:17.6]} 24. Rfb1 {[%clk 0:00:21.8]} 24... Rec8 {[%clk
0:01:55.6]} 25. h4 {[%clk 0:00:13.7]} 25... Bxa3 {[%clk 0:01:48.5]} 26. Qxa3
{[%clk 0:00:13.4]} 26... Qc5 {[%clk 0:01:48.9]} 27. Qa2 {[%clk 0:00:11.5]} 27...
Qc4 {[%clk 0:01:48.3]} 28. Qa3 {[%clk 0:00:06]} 28... Qxh4 {[%clk 0:01:45.3]}
29. R1b4 {[%clk 0:00:06]} 29... Qh5 {[%clk 0:01:37.1]} 30. g3 {[%clk 0:00:02.6]}
30... Qf3 {[%clk 0:01:32.4]} 0-1

[Event "*** SCC Grand Prix: Titled Tuesday Blitz"]
[Site "Chess.com"]
[Date "2020.07.14"]
[Round "3"]
[White "isainz"]
[Black "MasterKroket"]
[Result "0-1"]
[WhiteElo "2154"]
[BlackElo "2408"]
[TimeControl "180+1"]
[EndTime "10:27:22 PDT"]
[Termination "MasterKroket won on time"]

1. e4 {[%clk 0:02:08.2]} 1... c5 {[%clk 0:02:58.5]} 2. Nf3 {[%clk 0:02:07.2]}
2... e6 {[%clk 0:02:58.9]} 3. d4 {[%clk 0:02:06.7]} 3... cxd4 {[%clk 0:02:59.8]}
4. Nxd4 {[%clk 0:02:06.6]} 4... Nc6 {[%clk 0:03:00.5]} 5. Nb5 {[%clk 0:02:00.9]}
5... d6 {[%clk 0:03:00.5]} 6. c4 {[%clk 0:01:59.3]} 6... Nf6 {[%clk 0:02:59.8]}
7. N1c3 {[%clk 0:01:59.5]} 7... a6 {[%clk 0:02:58.1]} 8. Na3 {[%clk 0:01:58.3]}
8... b6 {[%clk 0:02:58.4]} 9. Be3 {[%clk 0:01:48.5]} 9... Bb7 {[%clk 0:02:58.1]}
10. Be2 {[%clk 0:01:45.5]} 10... Nb8 {[%clk 0:02:58.3]} 11. f3 {[%clk
0:01:44.4]} 11... Be7 {[%clk 0:02:58.1]} 12. Qb3 {[%clk 0:01:43.1]} 12... Nbd7
{[%clk 0:02:58.1]} 13. O-O {[%clk 0:01:37.4]} 13... Bc6 {[%clk 0:02:42.6]} 14.
Rfd1 {[%clk 0:01:30.7]} 14... Qb8 {[%clk 0:02:33.5]} 15. Rac1 {[%clk 0:01:22.4]}
15... O-O {[%clk 0:02:32]} 16. Nc2 {[%clk 0:01:06.3]} 16... Nc5 {[%clk 0:02:29]}
17. Bxc5 {[%clk 0:01:02.5]} 17... bxc5 {[%clk 0:02:28.5]} 18. Qxb8 {[%clk
0:01:01.5]} 18... Raxb8 {[%clk 0:02:26.7]} 19. b3 {[%clk 0:00:56.1]} 19... Rfd8
{[%clk 0:02:25.6]} 20. Ne3 {[%clk 0:00:47.7]} 20... Ne8 {[%clk 0:02:16]} 21. Rd2
{[%clk 0:00:42.2]} 21... Bf6 {[%clk 0:01:59.6]} 22. g3 {[%clk 0:00:23.6]} 22...
g6 {[%clk 0:01:51.1]} 23. Bf1 {[%clk 0:00:18.9]} 23... a5 {[%clk 0:01:50.3]} 24.
Kf2 {[%clk 0:00:15.5]} 24... a4 {[%clk 0:01:49.8]} 25. bxa4 {[%clk 0:00:14.8]}
25... Rb4 {[%clk 0:01:47.7]} 26. Ke2 {[%clk 0:00:12.6]} 26... Bxa4 {[%clk
0:01:46.4]} 27. Nxa4 {[%clk 0:00:11.2]} 27... Rxa4 {[%clk 0:01:47.3]} 28. Rb1
{[%clk 0:00:07.6]} 28... Rda8 {[%clk 0:01:46.5]} 29. Rb7 {[%clk 0:00:06.3]}
29... Rxa2 {[%clk 0:01:46]} 30. Rxa2 {[%clk 0:00:05.3]} 30... Rxa2+ {[%clk
0:01:46.9]} 31. Kd3 {[%clk 0:00:04.1]} 31... Bd4 {[%clk 0:01:43.6]} 32. Ng4
{[%clk 0:00:03.2]} 32... Kg7 {[%clk 0:01:32.9]} 33. f4 {[%clk 0:00:01.8]} 33...
h5 {[%clk 0:01:30.9]} 0-1

[Event "*** SCC Grand Prix: Titled Tuesday Blitz"]
[Site "Chess.com"]
[Date "2020.07.14"]
[Round "3"]
[White "SanQui14"]
[Black "GustavoJuarezF"]
[Result "1-0"]
[WhiteElo "2280"]
[BlackElo "1991"]
[TimeControl "180+1"]
[EndTime "10:27:30 PDT"]
[Termination "SanQui14 won on time"]

1. d4 {[%clk 0:03:00.9]} 1... d5 {[%clk 0:02:57.4]} 2. c4 {[%clk 0:03:01.3]}
2... e6 {[%clk 0:02:57.4]} 3. Nf3 {[%clk 0:03:01.7]} 3... c6 {[%clk 0:02:57.5]}
4. Nc3 {[%clk 0:03:02.6]} 4... Nf6 {[%clk 0:02:57.2]} 5. Bf4 {[%clk 0:03:03.1]}
5... Bd6 {[%clk 0:02:55.6]} 6. Be5 {[%clk 0:03:00.9]} 6... Qe7 {[%clk
0:02:53.9]} 7. e3 {[%clk 0:03:01.2]} 7... Nbd7 {[%clk 0:02:53.2]} 8. Bd3 {[%clk
0:03:00.1]} 8... O-O {[%clk 0:02:49.8]} 9. Qc2 {[%clk 0:02:58.8]} 9... g6 {[%clk
0:02:49.4]} 10. h4 {[%clk 0:02:58]} 10... Bxe5 {[%clk 0:02:46.8]} 11. dxe5
{[%clk 0:02:57.1]} 11... Nh5 {[%clk 0:02:39.7]} 12. g4 {[%clk 0:02:56.2]} 12...
dxc4 {[%clk 0:02:39.1]} 13. Bxc4 {[%clk 0:02:52.2]} 13... Ng7 {[%clk 0:02:37.9]}
14. O-O-O {[%clk 0:02:50.3]} 14... b5 {[%clk 0:02:34.4]} 15. Bd3 {[%clk
0:02:49.6]} 15... Qc5 {[%clk 0:02:30.9]} 16. h5 {[%clk 0:02:44.5]} 16... Nxe5
{[%clk 0:02:30.1]} 17. Nxe5 {[%clk 0:02:42]} 17... Qxe5 {[%clk 0:02:29.4]} 18.
Ne4 {[%clk 0:01:59.5]} 18... a5 {[%clk 0:01:51.8]} 19. f4 {[%clk 0:01:54.3]}
19... Qc7 {[%clk 0:01:31.6]} 20. Nf6+ {[%clk 0:01:53]} 20... Kh8 {[%clk
0:01:30.7]} 21. hxg6 {[%clk 0:01:53.6]} 21... h5 {[%clk 0:01:18.8]} 22. gxh5
{[%clk 0:01:50.2]} 22... Qe7 {[%clk 0:01:10.8]} 23. Ng4 {[%clk 0:01:25.9]} 23...
f5 {[%clk 0:01:05.5]} 24. Ne5 {[%clk 0:01:23.9]} 24... Rf6 {[%clk 0:00:28.2]}
25. h6 {[%clk 0:01:22]} 25... Bb7 {[%clk 0:00:11.3]} 26. hxg7+ {[%clk
0:01:14.3]} 26... Kg8 {[%clk 0:00:08.3]} 27. Rh8+ {[%clk 0:01:11.5]} 27... Kxg7
{[%clk 0:00:07.7]} 28. Rh7+ {[%clk 0:01:12.1]} 28... Kf8 {[%clk 0:00:07.3]} 29.
Rxe7 {[%clk 0:01:11.3]} 1-0

[Event "*** SCC Grand Prix: Titled Tuesday Blitz"]
[Site "Chess.com"]
[Date "2020.07.14"]
[Round "3"]
[White "romulocardoso"]
[Black "anpospan"]
[Result "0-1"]
[WhiteElo "2087"]
[BlackElo "2315"]
[TimeControl "180+1"]
[EndTime "10:27:32 PDT"]
[Termination "anpospan won by resignation"]

1. e4 {[%clk 0:03:00.9]} 1... Nc6 {[%clk 0:02:58.5]} 2. d4 {[%clk 0:02:59.5]}
2... e5 {[%clk 0:02:58]} 3. d5 {[%clk 0:02:58.4]} 3... Nce7 {[%clk 0:02:57.7]}
4. c4 {[%clk 0:02:58.9]} 4... Ng6 {[%clk 0:02:57.3]} 5. Nc3 {[%clk 0:02:59.8]}
5... Bc5 {[%clk 0:02:56.7]} 6. Nf3 {[%clk 0:02:56.9]} 6... d6 {[%clk 0:02:56]}
7. Be2 {[%clk 0:02:55.8]} 7... Nf6 {[%clk 0:02:55.2]} 8. h4 {[%clk 0:02:53.5]}
8... h5 {[%clk 0:02:53.7]} 9. Bg5 {[%clk 0:02:49.7]} 9... a5 {[%clk 0:02:48.2]}
10. a3 {[%clk 0:02:49.6]} 10... Bg4 {[%clk 0:02:46.1]} 11. b4 {[%clk 0:02:48.5]}
11... axb4 {[%clk 0:02:38.5]} 12. axb4 {[%clk 0:02:49.4]} 12... Bxb4 {[%clk
0:02:30.9]} 13. Rc1 {[%clk 0:02:25.7]} 13... Ra3 {[%clk 0:02:24.2]} 14. Qd3
{[%clk 0:02:12.1]} 14... Rxc3 {[%clk 0:02:10.4]} 15. Rxc3 {[%clk 0:02:10.5]}
15... Bxc3+ {[%clk 0:02:10.4]} 16. Qxc3 {[%clk 0:02:11.4]} 16... Nxe4 {[%clk
0:02:01]} 17. Qb4 {[%clk 0:02:03.6]} 17... Nxg5 {[%clk 0:01:58.2]} 18. Nxg5
{[%clk 0:02:04.5]} 18... Bxe2 {[%clk 0:01:52.5]} 19. Kxe2 {[%clk 0:02:05.4]}
19... Nf4+ {[%clk 0:01:50.8]} 20. Kf3 {[%clk 0:02:02.9]} 20... O-O {[%clk
0:01:33.1]} 21. Qxb7 {[%clk 0:01:59.8]} 21... Qf6 {[%clk 0:01:22.9]} 22. g4
{[%clk 0:01:21.3]} 22... Nd3+ {[%clk 0:01:15.2]} 23. Ke3 {[%clk 0:01:21.1]}
23... Nxf2 {[%clk 0:01:08.7]} 24. Rf1 {[%clk 0:01:13.1]} 24... Qf4+ {[%clk
0:01:01.9]} 25. Ke2 {[%clk 0:01:13.2]} 25... hxg4 {[%clk 0:00:57.1]} 26. Rxf2
{[%clk 0:01:12.3]} 26... Qxc4+ {[%clk 0:00:56.9]} 27. Ke1 {[%clk 0:01:09.4]}
27... g3 {[%clk 0:00:56.7]} 28. Rg2 {[%clk 0:01:04.6]} 28... Qxh4 {[%clk
0:00:51.9]} 29. Nf3 {[%clk 0:00:38.1]} 29... Qe4+ {[%clk 0:00:50.2]} 0-1

[Event "*** SCC Grand Prix: Titled Tuesday Blitz"]
[Site "Chess.com"]
[Date "2020.07.14"]
[Round "3"]
[White "maximnovik"]
[Black "AniJak"]
[Result "1-0"]
[WhiteElo "2515"]
[BlackElo "2324"]
[TimeControl "180+1"]
[EndTime "10:27:33 PDT"]
[Termination "maximnovik won by checkmate"]

1. d4 {[%clk 0:02:55.1]} 1... d5 {[%clk 0:02:59.7]} 2. c4 {[%clk 0:02:54.6]}
2... c6 {[%clk 0:03:00]} 3. Nc3 {[%clk 0:02:53]} 3... Nf6 {[%clk 0:02:59.9]} 4.
Bf4 {[%clk 0:02:53.5]} 4... e6 {[%clk 0:02:57.8]} 5. e3 {[%clk 0:02:53.6]} 5...
Bd6 {[%clk 0:02:56]} 6. Bg3 {[%clk 0:02:53.6]} 6... Bxg3 {[%clk 0:02:48.9]} 7.
hxg3 {[%clk 0:02:53]} 7... Nbd7 {[%clk 0:02:48.8]} 8. Nf3 {[%clk 0:02:52.9]}
8... Nf8 {[%clk 0:02:48.2]} 9. Qc2 {[%clk 0:02:51.4]} 9... Ng6 {[%clk 0:02:48]}
10. Bd3 {[%clk 0:02:49.4]} 10... O-O {[%clk 0:02:40.3]} 11. Ne5 {[%clk
0:02:44.4]} 11... dxc4 {[%clk 0:02:36]} 12. Bxc4 {[%clk 0:02:42.1]} 12... Nd5
{[%clk 0:02:25.4]} 13. Nxg6 {[%clk 0:02:23.5]} 13... fxg6 {[%clk 0:02:15.7]} 14.
O-O-O {[%clk 0:02:17.6]} 14... b5 {[%clk 0:02:14.6]} 15. Bb3 {[%clk 0:02:13.3]}
15... a5 {[%clk 0:02:10.3]} 16. Ne4 {[%clk 0:02:12.6]} 16... a4 {[%clk
0:02:07.3]} 17. Bxd5 {[%clk 0:02:11.6]} 17... cxd5 {[%clk 0:02:03.3]} 18. Nc5
{[%clk 0:02:11.4]} 18... Bd7 {[%clk 0:01:59.2]} 19. f4 {[%clk 0:02:07.9]} 19...
b4 {[%clk 0:01:57.2]} 20. Qf2 {[%clk 0:01:52.9]} 20... Rc8 {[%clk 0:01:48.6]}
21. Qe2 {[%clk 0:01:42.9]} 21... Qe7 {[%clk 0:01:39]} 22. Kb1 {[%clk 0:01:42.1]}
22... Rc7 {[%clk 0:01:31.2]} 23. Rc1 {[%clk 0:01:36.5]} 23... Rfc8 {[%clk
0:01:30.5]} 24. g4 {[%clk 0:01:34.4]} 24... Be8 {[%clk 0:01:23.7]} 25. g5 {[%clk
0:01:34.1]} 25... Qd6 {[%clk 0:01:19.9]} 26. g4 {[%clk 0:01:33.3]} 26... Qb6
{[%clk 0:01:18.4]} 27. Qh2 {[%clk 0:01:31.4]} 27... Bb5 {[%clk 0:01:07.3]} 28.
Qxh7+ {[%clk 0:01:28.7]} 28... Kf7 {[%clk 0:01:07.6]} 29. Rh6 {[%clk 0:01:21.7]}
29... e5 {[%clk 0:01:04.3]} 30. f5 {[%clk 0:01:09.9]} 30... Rxc5 {[%clk
0:01:01]} 31. dxc5 {[%clk 0:00:55.5]} 31... Bd3+ {[%clk 0:01:00.3]} 32. Ka1
{[%clk 0:00:54.7]} 32... Rxc5 {[%clk 0:01:00.2]} 33. Rxc5 {[%clk 0:00:53.8]}
33... Qxc5 {[%clk 0:00:58.5]} 34. Qxg6+ {[%clk 0:00:53.7]} 34... Kf8 {[%clk
0:00:45]} 35. Rh8+ {[%clk 0:00:51.2]} 35... Ke7 {[%clk 0:00:42.1]} 36. Qe6#
{[%clk 0:00:50.8]} 1-0

[Event "*** SCC Grand Prix: Titled Tuesday Blitz"]
[Site "Chess.com"]
[Date "2020.07.14"]
[Round "3"]
[White "Tsyhanchuk_Stanislav"]
[Black "Izoria123"]
[Result "0-1"]
[WhiteElo "2444"]
[BlackElo "2888"]
[TimeControl "180+1"]
[EndTime "10:27:46 PDT"]
[Termination "Izoria123 won by resignation"]

1. d4 {[%clk 0:03:00.9]} 1... d6 {[%clk 0:02:59.3]} 2. c4 {[%clk 0:03:00.5]}
2... e5 {[%clk 0:02:58.7]} 3. e3 {[%clk 0:02:50.9]} 3... Nd7 {[%clk 0:02:56.7]}
4. Nc3 {[%clk 0:02:49.4]} 4... g6 {[%clk 0:02:56.3]} 5. Bd3 {[%clk 0:02:44]}
5... Bg7 {[%clk 0:02:56.4]} 6. Nge2 {[%clk 0:02:43.7]} 6... Ngf6 {[%clk
0:02:56.3]} 7. O-O {[%clk 0:02:43]} 7... O-O {[%clk 0:02:56.9]} 8. f4 {[%clk
0:02:40]} 8... exd4 {[%clk 0:02:54.6]} 9. exd4 {[%clk 0:02:39.7]} 9... d5 {[%clk
0:02:54.4]} 10. b3 {[%clk 0:02:38.6]} 10... c5 {[%clk 0:02:51.5]} 11. Bb2 {[%clk
0:02:30.8]} 11... cxd4 {[%clk 0:02:45.4]} 12. Nxd4 {[%clk 0:02:30]} 12... Nc5
{[%clk 0:02:41.7]} 13. Nce2 {[%clk 0:02:20]} 13... Ng4 {[%clk 0:02:31.6]} 14.
Rf3 {[%clk 0:02:13.9]} 14... Re8 {[%clk 0:02:29.2]} 15. Qd2 {[%clk 0:02:08.9]}
15... Nxd3 {[%clk 0:02:17.9]} 16. Rxd3 {[%clk 0:02:04.6]} 16... dxc4 {[%clk
0:02:17.5]} 17. bxc4 {[%clk 0:02:02.8]} 17... Qb6 {[%clk 0:02:15.3]} 18. Rc1
{[%clk 0:01:46.4]} 18... Bf5 {[%clk 0:02:04]} 19. c5 {[%clk 0:01:43.6]} 19...
Qf6 {[%clk 0:01:54]} 20. h3 {[%clk 0:01:25]} 20... Bxd3 {[%clk 0:01:50.7]} 21.
Qxd3 {[%clk 0:01:11.9]} 21... Ne3 {[%clk 0:01:49.6]} 22. Ba1 {[%clk 0:00:58.8]}
22... Rad8 {[%clk 0:01:47.8]} 23. Qb3 {[%clk 0:00:46.5]} 23... Qe7 {[%clk
0:01:45.1]} 24. Kh1 {[%clk 0:00:38.5]} 24... Qe4 {[%clk 0:01:39.6]} 25. Rg1
{[%clk 0:00:36]} 25... Rxd4 {[%clk 0:01:34.5]} 26. Nxd4 {[%clk 0:00:34.6]} 26...
Bxd4 {[%clk 0:01:35.4]} 27. Bxd4 {[%clk 0:00:32.5]} 27... Qxd4 {[%clk
0:01:36.3]} 28. Qxb7 {[%clk 0:00:22]} 28... Qxc5 {[%clk 0:01:33.5]} 29. a4
{[%clk 0:00:15.6]} 29... Nf5 {[%clk 0:01:25.9]} 30. Qd7 {[%clk 0:00:14.3]} 30...
Re2 {[%clk 0:01:21.4]} 31. Kh2 {[%clk 0:00:10.5]} 31... Qd4 {[%clk 0:01:17.8]}
32. Qxd4 {[%clk 0:00:09.5]} 32... Nxd4 {[%clk 0:01:18.7]} 33. Rd1 {[%clk
0:00:09.6]} 33... Re4 {[%clk 0:01:15]} 34. a5 {[%clk 0:00:09.1]} 34... Rxf4
{[%clk 0:01:14.5]} 35. Kg3 {[%clk 0:00:08.9]} 35... Ne2+ {[%clk 0:01:13.4]} 36.
Kh2 {[%clk 0:00:09.5]} 36... Rf5 {[%clk 0:01:12.3]} 37. Rd8+ {[%clk 0:00:09.6]}
37... Kg7 {[%clk 0:01:11.9]} 38. a6 {[%clk 0:00:09.7]} 38... Rf6 {[%clk
0:01:11.6]} 39. Rd2 {[%clk 0:00:08.9]} 0-1

[Event "*** SCC Grand Prix: Titled Tuesday Blitz"]
[Site "Chess.com"]
[Date "2020.07.14"]
[Round "3"]
[White "Parhamov"]
[Black "chargemax23"]
[Result "1-0"]
[WhiteElo "3014"]
[BlackElo "2685"]
[TimeControl "180+1"]
[EndTime "10:27:49 PDT"]
[Termination "Parhamov won by resignation"]

1. e4 {[%clk 0:03:00.9]} 1... c5 {[%clk 0:02:58.6]} 2. Nf3 {[%clk 0:02:59]} 2...
e6 {[%clk 0:02:57.5]} 3. d4 {[%clk 0:02:59.1]} 3... cxd4 {[%clk 0:02:57.3]} 4.
Nxd4 {[%clk 0:03:00]} 4... Nc6 {[%clk 0:02:57.7]} 5. Nc3 {[%clk 0:02:57.8]} 5...
Nf6 {[%clk 0:02:57.5]} 6. Nxc6 {[%clk 0:02:56.1]} 6... dxc6 {[%clk 0:02:53.6]}
7. Qxd8+ {[%clk 0:02:54.1]} 7... Kxd8 {[%clk 0:02:53.3]} 8. Bg5 {[%clk
0:02:51.8]} 8... Be7 {[%clk 0:02:49.3]} 9. O-O-O+ {[%clk 0:02:50.2]} 9... Nd7
{[%clk 0:02:47]} 10. h4 {[%clk 0:02:46.8]} 10... f6 {[%clk 0:02:34.9]} 11. Be3
{[%clk 0:02:45]} 11... e5 {[%clk 0:02:32]} 12. f4 {[%clk 0:02:42.3]} 12... Kc7
{[%clk 0:02:30.5]} 13. f5 {[%clk 0:02:37.8]} 13... h5 {[%clk 0:02:27.7]} 14. Rh3
{[%clk 0:02:26.4]} 14... a5 {[%clk 0:02:21.6]} 15. Rg3 {[%clk 0:02:13.7]} 15...
Bf8 {[%clk 0:02:06.9]} 16. a4 {[%clk 0:02:00.2]} 16... b6 {[%clk 0:01:52.9]} 17.
Bc4 {[%clk 0:01:41.8]} 17... Nc5 {[%clk 0:01:46.6]} 18. Bxc5 {[%clk 0:01:39.8]}
18... bxc5 {[%clk 0:01:45.9]} 19. Rd2 {[%clk 0:01:14.7]} 19... Rb8 {[%clk
0:01:18.9]} 20. Nd1 {[%clk 0:01:14]} 20... Bd7 {[%clk 0:00:50.9]} 21. Ne3 {[%clk
0:01:11.8]} 21... Be8 {[%clk 0:00:48.6]} 22. Be6 {[%clk 0:01:07.5]} 22... Rh6
{[%clk 0:00:35.5]} 23. Nc4 {[%clk 0:01:06.3]} 23... Ra8 {[%clk 0:00:35.3]} 24.
Rgd3 {[%clk 0:01:03.5]} 24... g6 {[%clk 0:00:28.8]} 25. Bf7 {[%clk 0:01:02.2]}
25... gxf5 {[%clk 0:00:26.7]} 26. Bxe8 {[%clk 0:01:01.5]} 26... Rxe8 {[%clk
0:00:24.8]} 27. Rd7+ {[%clk 0:01:01.9]} 27... Kb8 {[%clk 0:00:24.1]} 28. Rf7
{[%clk 0:00:53.8]} 28... Rg6 {[%clk 0:00:15.8]} 29. Rdd7 {[%clk 0:00:53.1]} 1-0

[Event "*** SCC Grand Prix: Titled Tuesday Blitz"]
[Site "Chess.com"]
[Date "2020.07.14"]
[Round "3"]
[White "joksijoksi"]
[Black "MikeSailer"]
[Result "1-0"]
[WhiteElo "2381"]
[BlackElo "2138"]
[TimeControl "180+1"]
[EndTime "10:27:49 PDT"]
[Termination "joksijoksi won by resignation"]

1. e4 {[%clk 0:03:00.9]} 1... d5 {[%clk 0:02:59.4]} 2. exd5 {[%clk 0:02:56.8]}
2... Qxd5 {[%clk 0:02:59.1]} 3. Nc3 {[%clk 0:02:57.7]} 3... Qd6 {[%clk
0:02:58.8]} 4. d4 {[%clk 0:02:55.4]} 4... Nf6 {[%clk 0:02:58.8]} 5. Nge2 {[%clk
0:02:36.8]} 5... c6 {[%clk 0:02:52.2]} 6. Bf4 {[%clk 0:02:36.1]} 6... Qd8 {[%clk
0:02:51.1]} 7. g3 {[%clk 0:02:22.5]} 7... Bg4 {[%clk 0:02:44.6]} 8. Bg2 {[%clk
0:02:18.6]} 8... e6 {[%clk 0:02:44]} 9. f3 {[%clk 0:02:15.8]} 9... Bf5 {[%clk
0:02:37.8]} 10. g4 {[%clk 0:02:16.3]} 10... Bg6 {[%clk 0:02:34.3]} 11. h4 {[%clk
0:02:16.9]} 11... h6 {[%clk 0:02:33.9]} 12. h5 {[%clk 0:02:15.1]} 12... Bh7
{[%clk 0:02:31.8]} 13. Ne4 {[%clk 0:02:14.4]} 13... Be7 {[%clk 0:02:22.9]} 14.
Qd2 {[%clk 0:02:12.3]} 14... Nxe4 {[%clk 0:02:11.6]} 15. fxe4 {[%clk 0:02:06.9]}
15... Bh4+ {[%clk 0:02:11.1]} 16. Ng3 {[%clk 0:01:59]} 16... Nd7 {[%clk
0:01:55.3]} 17. O-O-O {[%clk 0:01:58.5]} 17... Bg5 {[%clk 0:01:34]} 18. Rhf1
{[%clk 0:01:47.7]} 18... Bxf4 {[%clk 0:01:17.5]} 19. Qxf4 {[%clk 0:01:48.6]}
19... O-O {[%clk 0:01:12]} 20. e5 {[%clk 0:01:43.3]} 20... Nb6 {[%clk
0:01:01.4]} 21. Be4 {[%clk 0:01:36.8]} 21... Nd5 {[%clk 0:00:54.1]} 22. Bxh7+
{[%clk 0:01:32.4]} 22... Kxh7 {[%clk 0:00:53.4]} 23. Qe4+ {[%clk 0:01:33.1]}
23... Kg8 {[%clk 0:00:52.7]} 24. Kb1 {[%clk 0:01:29.4]} 24... Qg5 {[%clk
0:00:51]} 25. Rde1 {[%clk 0:01:24.4]} 25... a5 {[%clk 0:00:43]} 26. Qe2 {[%clk
0:01:21.8]} 26... b5 {[%clk 0:00:40]} 27. Ne4 {[%clk 0:01:21.8]} 27... Qe7
{[%clk 0:00:33.4]} 28. g5 {[%clk 0:01:22]} 28... hxg5 {[%clk 0:00:30.2]} 29. h6
{[%clk 0:01:22.9]} 29... gxh6 {[%clk 0:00:30.1]} 30. Nf6+ {[%clk 0:01:22.1]}
30... Nxf6 {[%clk 0:00:28.3]} 31. Rxf6 {[%clk 0:01:22]} 31... Kg7 {[%clk
0:00:25.6]} 32. Qh5 {[%clk 0:01:19.6]} 32... Rh8 {[%clk 0:00:24.9]} 33. Rh1
{[%clk 0:01:15.8]} 33... Kf8 {[%clk 0:00:12.4]} 34. Rxh6 {[%clk 0:01:16.1]}
34... Rxh6 {[%clk 0:00:12]} 35. Qxh6+ {[%clk 0:01:17]} 35... Ke8 {[%clk
0:00:12.6]} 36. Qh8+ {[%clk 0:01:15.1]} 36... Kd7 {[%clk 0:00:11]} 37. Qxa8
{[%clk 0:01:16]} 1-0